fUST/lending_fUST_20250103
["ID","MTS","AMOUNT","RATE_DAILY","PERIOD"]
[347492821,1735873855554,-500.0,0.00021095,3]
[347492822,1735873855564,-500.0,0.00021095,3]
[347492823,1735873855573,-500.0,0.00021095,3]
[347492824,1735873855583,-6217.16,0.00021095,3]
[347492825,1735873855593,-666.52,0.00021095,3]
[347492826,1735873855602,-686.81,0.00021095,3]
[347492827,1735873855612,-506.45,0.00021095,2]
[347492828,1735873855622,-546.48,0.00021095,3]
[347492830,1735873855632,-794.68,0.00021095,3]
[347492831,1735873855641,-200.9429556,0.00021095,3]
[347492833,1735873855652,-500.0,0.00021095,3]
[347492834,1735873855661,-500.0,0.00021095,3]
[347492835,1735873855671,-500.0,0.00021095,3]
[347492836,1735873855681,-637.86,0.00021095,3]
[347492838,1735873855691,-853.39,0.00021095,3]
[347492839,1735873855700,-562.12,0.00021095,3]
[347492841,1735873855709,-885.68,0.00021095,3]
[347492843,1735873855719,-535.57,0.00021095,3]
[347492845,1735873855729,-784.37,0.00021095,3]
[347492846,1735873855738,-1288.07,0.00021095,3]
[347492848,1735873855748,-1131.64,0.00021095,3]
[347492850,1735873855757,-901.92,0.00021095,3]
[347492852,1735873855766,-500.0,0.00021095,3]
[347492855,1735873855776,-1073.39,0.00021095,3]
[347492857,1735873855785,-500.0,0.00021095,3]
[347492859,1735873855795,-500.0,0.00021095,3]
[347492861,1735873855806,-618.94,0.00021095,3]
[347492863,1735873855815,-636.27,0.00021095,3]
[347492865,1735873855825,-710.73,0.00021095,3]
[347492867,1735873855837,-500.0,0.00021095,3]
[347492869,1735873855847,-732.88,0.00021095,3]
[347492871,1735873855856,-500.0,0.00021095,3]
[347492873,1735873855865,-616.6,0.00021095,3]
[347492875,1735873855875,-565.28,0.00021095,3]
[347492877,1735873855884,-995.06,0.00021095,3]
[347492879,1735873855894,-2253.22,0.00021095,3]
[347492881,1735873855903,-2899.03,0.00021095,3]
[347492883,1735873855913,-500.0,0.00021095,3]
[347492885,1735873855922,-500.0,0.00021095,3]
[347492887,1735873855931,-553.57,0.00021095,3]
[347492889,1735873855940,-618.25,0.00021095,3]
[347492891,1735873855950,-585.3,0.00021095,3]
[347492893,1735873855960,-565.24,0.00021095,3]
[347492895,1735873855969,-757.08,0.00021095,3]
[347492897,1735873855979,-500.0,0.00021095,3]
[347492899,1735873855988,-500.0,0.00021095,3]
[347492901,1735873855997,-1234.67,0.00021095,3]
[347492903,1735873856007,-5371.44,0.00021095,3]
[347492905,1735873856017,-552.85,0.00021095,3]
[347492907,1735873856027,-500.0,0.00021095,3]
[347492909,1735873856036,-1361.54,0.00021095,3]
[347492911,1735873856045,-500.0,0.00021095,3]
[347492913,1735873856057,-500.0,0.00021095,3]
[347492915,1735873856066,-29975.34,0.00021095,3]
[347492917,1735873856076,-3983.07,0.00021095,3]
[347492931,1735873856196,-686.65,0.00021095,3]
[347492933,1735873856206,-1536.43,0.00021095,3]
[347492935,1735873856215,-500.0,0.00021095,3]
[347492937,1735873856225,-1195.74,0.00021095,3]
[347492939,1735873856235,-859.6,0.00021095,3]
[347492941,1735873856245,-941.57,0.00021095,3]
[347492943,1735873856254,-2282.97,0.00021095,3]
[347492945,1735873856263,-500.0,0.00021095,3]
[347492947,1735873856273,-639.51,0.00021095,3]
[347492949,1735873856282,-663.27,0.00021095,3]
[347492950,1735873856291,-2681.04,0.00021095,3]
[347492953,1735873856302,-1204.86,0.00021095,3]
[347492954,1735873856312,-851.07,0.00021095,3]
[347492956,1735873856322,-500.0,0.00021095,3]
[347492959,1735873856332,-945.91,0.00021095,3]
[347492960,1735873856341,-500.0,0.00021095,3]
[347492962,1735873856350,-500.0,0.00021095,3]
[347492964,1735873856359,-513.67,0.00021095,3]
[347492966,1735873856368,-2104.63,0.00021095,3]
[347492968,1735873856377,-8547.75,0.000211,2]
[347492970,1735873856387,-13292.33,0.000211,2]
[347492972,1735873856396,-315.49172131,0.00021132,2]
[347492974,1735873856406,-743.88343341,0.00021141,2]
[347492976,1735873856415,-2833.12,0.000212,2]
[347492979,1735873856425,-743.88343341,0.00021245,2]
[347492981,1735873856435,-315.49172131,0.00021337,2]
[347492983,1735873856445,-743.88343341,0.00021348,2]
[347492985,1735873856454,-159.0,0.00021368,2]
[347492987,1735873856464,-159.0,0.00021368,2]
[347492989,1735873856473,-159.0,0.00021368,2]
[347492991,1735873856482,-159.0,0.00021368,2]
[347492993,1735873856492,-158.0,0.00021369,2]
[347492995,1735873856502,-6846.73,0.00021369,3]
[347492997,1735873856511,-500.0,0.00021369,3]
[347492999,1735873856521,-500.0,0.00021369,3]
[347493001,1735873856530,-500.0,0.00021369,3]
[347493003,1735873856540,-500.0,0.00021369,3]
[347493005,1735873856551,-500.0,0.00021369,3]
[347493007,1735873856560,-6217.16,0.00021369,3]
[347493009,1735873856570,-666.52,0.00021369,3]
[347493011,1735873856579,-686.81,0.00021369,3]
[347493013,1735873856588,-506.45,0.00021369,2]
[347493015,1735873856598,-546.48,0.00021369,3]
[347493017,1735873856607,-794.68,0.00021369,3]
[347493019,1735873856617,-500.0,0.00021369,3]
[347493021,1735873856626,-500.0,0.00021369,3]
[347493023,1735873856636,-169.01141525,0.00021369,3]
[347493025,1735873856645,-637.86,0.00021369,3]
[347493027,1735873856654,-853.39,0.00021369,3]
[347493029,1735873856663,-562.12,0.00021369,3]
[347493031,1735873856673,-885.68,0.00021369,3]
[347493033,1735873856682,-535.57,0.00021369,3]
[347493035,1735873856692,-784.37,0.00021369,3]
[347493037,1735873856702,-1288.07,0.00021369,3]
[347493039,1735873856712,-1131.64,0.00021369,3]
[347493041,1735873856721,-901.92,0.00021369,3]
[347493043,1735873856730,-500.0,0.00021369,3]
[347493045,1735873856740,-1073.39,0.00021369,3]
[347493047,1735873856750,-500.0,0.00021369,3]
[347493049,1735873856759,-500.0,0.00021369,3]
[347493051,1735873856769,-618.94,0.00021369,3]
[347493053,1735873856778,-636.27,0.00021369,3]
[347493055,1735873856787,-710.73,0.00021369,3]
[347493057,1735873856796,-500.0,0.00021369,3]
[347493059,1735873856808,-732.88,0.00021369,3]
[347493061,1735873856817,-500.0,0.00021369,3]
[347493063,1735873856827,-616.6,0.00021369,3]
[347493065,1735873856836,-565.28,0.00021369,3]
[347493068,1735873856845,-995.06,0.00021369,3]
[347493070,1735873856854,-2253.22,0.00021369,3]
[347493072,1735873856864,-2899.03,0.00021369,3]
[347493073,1735873856873,-500.0,0.00021369,3]
[347493076,1735873856882,-500.0,0.00021369,3]
[347493078,1735873856891,-553.57,0.00021369,3]
[347493079,1735873856901,-618.25,0.00021369,3]
[347493082,1735873856911,-585.3,0.00021369,3]
[347493084,1735873856920,-565.24,0.00021369,3]
[347493086,1735873856930,-757.08,0.00021369,3]
[347493088,1735873856939,-500.0,0.00021369,3]
[347493090,1735873856949,-500.0,0.00021369,3]
[347493092,1735873856959,-1234.67,0.00021369,3]
[347493094,1735873856968,-5371.44,0.00021369,3]
[347493096,1735873856977,-552.85,0.00021369,3]
[347493098,1735873856987,-500.0,0.00021369,3]
[347493100,1735873856996,-1361.54,0.00021369,3]
[347493102,1735873857006,-500.0,0.00021369,3]
[347493104,1735873857016,-500.0,0.00021369,3]
[347493106,1735873857026,-29975.34,0.00021369,3]
[347493108,1735873857036,-3983.07,0.00021369,3]
[347493110,1735873857045,-686.65,0.00021369,3]
[347493112,1735873857055,-1536.43,0.00021369,3]
[347493114,1735873857064,-500.0,0.00021369,3]
[347493116,1735873857074,-1195.74,0.00021369,3]
[347493118,1735873857084,-859.6,0.00021369,3]
[347493120,1735873857093,-941.57,0.00021369,3]
[347493122,1735873857102,-2282.97,0.00021369,3]
[347493124,1735873857111,-500.0,0.00021369,3]
[347493126,1735873857121,-639.51,0.00021369,3]
[347493128,1735873857130,-663.27,0.00021369,3]
[347493130,1735873857139,-2681.04,0.00021369,3]
[347493132,1735873857153,-1204.86,0.00021369,3]
[347493134,1735873857162,-851.07,0.00021369,3]
[347493136,1735873857172,-500.0,0.00021369,3]
[347493138,1735873857181,-945.91,0.00021369,3]
[347493140,1735873857190,-500.0,0.00021369,3]
[347493142,1735873857199,-500.0,0.00021369,3]
[347493144,1735873857208,-513.67,0.00021369,3]
[347493146,1735873857218,-2104.63,0.00021369,3]
[347493148,1735873857228,-587.0,0.00021393,2]
[347493150,1735873857237,-250.0,0.00021426,2]
[347493152,1735873857247,-250.0,0.00021426,2]
[347493154,1735873857256,-250.0,0.00021426,2]
[347493156,1735873857266,-250.0,0.00021426,2]
[347493158,1735873857275,-250.0,0.00021426,2]
[347493160,1735873857285,-250.0,0.00021426,2]
[347493162,1735873857294,-250.0,0.00021426,2]
[347493164,1735873857304,-250.0,0.00021426,2]
[347493166,1735873857315,-250.0,0.00021426,2]
[347493168,1735873857324,-250.0,0.00021426,2]
[347493170,1735873857334,-249.4,0.00021426,2]
[347493172,1735873857344,-743.88343341,0.00021452,2]
[347493175,1735873857354,-34284.68715467,0.00021452,14]
[347493177,1735873857363,-151.0,0.00021469,6]
[347493178,1735873857373,-5000.0,0.000215,2]
[347493181,1735873857383,-5024.08939408,0.00021524,2]
[347493182,1735873857392,-315.49172131,0.00021542,2]
[347493184,1735873857401,-743.88343341,0.00021555,2]
[347493186,1735873857411,-10804.0,0.000216,4]
[347493189,1735873857420,-1116.0,0.000216,9]
[347493190,1735873857430,-152.6,0.00021609,2]
[347493192,1735873857439,-6846.73,0.00021643,3]
[347493194,1735873857449,-500.0,0.00021643,3]
[347493197,1735873857458,-500.0,0.00021643,3]
[347493199,1735873857467,-500.0,0.00021643,3]
[347493201,1735873857476,-500.0,0.00021643,3]
[347493202,1735873857486,-500.0,0.00021643,3]
[347493205,1735873857495,-6217.16,0.00021643,3]
[347493207,1735873857503,-666.52,0.00021643,3]
[347493209,1735873857513,-686.81,0.00021643,3]
[347493211,1735873857522,-506.45,0.00021643,2]
[347493213,1735873857531,-546.48,0.00021643,3]
[347493214,1735873857541,-794.68,0.00021643,3]
[347493216,1735873857551,-500.0,0.00021643,3]
[347493219,1735873857560,-500.0,0.00021643,3]
[347493220,1735873857569,-637.86,0.00021643,3]
[347493223,1735873857579,-853.39,0.00021643,3]
[347493225,1735873857588,-562.12,0.00021643,3]
[347493226,1735873857597,-885.68,0.00021643,3]
[347493228,1735873857606,-535.57,0.00021643,3]
[347493231,1735873857617,-784.37,0.00021643,3]
[347493233,1735873857627,-1288.07,0.00021643,3]
[347493235,1735873857636,-1131.64,0.00021643,3]
[347493237,1735873857646,-901.92,0.00021643,3]
[347493238,1735873857655,-500.0,0.00021643,3]
[347493240,1735873857665,-1073.39,0.00021643,3]
[347493242,1735873857673,-500.0,0.00021643,3]
[347493244,1735873857683,-500.0,0.00021643,3]
[347493246,1735873857692,-618.94,0.00021643,3]
[347493249,1735873857702,-636.27,0.00021643,3]
[347493250,1735873857711,-710.73,0.00021643,3]
[347493252,1735873857721,-500.0,0.00021643,3]
[347493253,1735873857731,-732.88,0.00021643,3]
[347493255,1735873857740,-500.0,0.00021643,3]
[347493257,1735873857749,-616.6,0.00021643,3]
[347493258,1735873857759,-565.28,0.00021643,3]
[347493260,1735873857769,-995.06,0.00021643,3]
[347493261,1735873857778,-2253.22,0.00021643,3]
[347493262,1735873857787,-2899.03,0.00021643,3]
[347493263,1735873857796,-500.0,0.00021643,3]
[347493264,1735873857806,-500.0,0.00021643,3]
[347493265,1735873857815,-553.57,0.00021643,3]
[347493266,1735873857825,-618.25,0.00021643,3]
[347493267,1735873857834,-585.3,0.00021643,3]
[347493268,1735873857844,-565.24,0.00021643,3]
[347493269,1735873857853,-757.08,0.00021643,3]
[347493270,1735873857862,-500.0,0.00021643,3]
[347493271,1735873857871,-575.45509881,0.00021643,3]
[347493272,1735873857881,-1234.67,0.00021643,3]
[347493273,1735873857892,-5371.44,0.00021643,3]
[347493275,1735873857901,-552.85,0.00021643,3]
[347493277,1735873857911,-500.0,0.00021643,3]
[347493279,1735873857920,-1361.54,0.00021643,3]
[347493281,1735873857929,-500.0,0.00021643,3]
[347493283,1735873857939,-500.0,0.00021643,3]
[347493284,1735873857949,-26229.79788871,0.00021643,3]
[347493285,1735873857964,-1799.0,0.00021643,3]
[347493286,1735873857994,-1946.54211129,0.00021643,3]
[347493287,1735873858004,-3983.07,0.00021643,3]
[347493288,1735873858013,-686.65,0.00021643,3]
[347493289,1735873858023,-1536.43,0.00021643,3]
[347493290,1735873858032,-1195.74,0.00021643,3]
[347493291,1735873858041,-500.0,0.00021643,3]
[347493292,1735873858051,-859.6,0.00021643,3]
[347493293,1735873858060,-941.57,0.00021643,3]
[347493294,1735873858070,-2282.97,0.00021643,3]
[347493295,1735873858079,-500.0,0.00021643,3]
[347493296,1735873858089,-639.51,0.00021643,3]
[347493297,1735873858098,-663.27,0.00021643,3]
[347493298,1735873858108,-2681.04,0.00021643,3]
[347493299,1735873858117,-1204.86,0.00021643,3]
[347493300,1735873858126,-17.13305018,0.00021643,4]
[347493301,1735873858367,-716.27955275,0.00018986,2]
[347493302,1735873858376,-481.86694982,0.00021643,4]
[347493303,1735873858386,-851.07,0.00021643,3]
[347493304,1735873858395,-500.0,0.00021643,3]
[347493305,1735873858406,-945.91,0.00021643,3]
[347493306,1735873858415,-500.0,0.00021643,3]
[347493307,1735873858425,-527.85139141,0.00021643,3]
[347493308,1735873858434,-228.39020685,0.00021643,3]
[347493309,1735873858446,-285.27979315,0.00021643,3]
[347493310,1735873858557,-1214.40276365,0.00021643,3]
[347493316,1735874109224,395.657446,0.00013973,2]
[347493327,1735874344508,200.0,0.000139,2]
[347493328,1735874364827,205.0,0.0001397,2]
[347493342,1735874798447,202.4,0.00025,120]
[347493356,1735874918735,1000.0,0.0001,2]
[347493358,1735874986114,395.874574,0.00013973,2]
[347493414,1735875032684,-200.0,0.0001538,2]
[347493416,1735875032694,-114.28454567,0.00015535,2]
[347493419,1735875032706,-85.71545433,0.00015535,2]
[347493421,1735875032716,-259.264756,0.00017911,2]
[347493423,1735875032725,-300.0,0.00018439,2]
[347493425,1735875032735,-4.84762638,0.0001844,2]
[347493427,1735875032746,-4200.77559619,0.0001844,2]
[347493429,1735875032757,-9847.0010143,0.0001844,2]
[347493706,1735875038415,-500.0,0.0001844,2]
[347493707,1735875038568,-663.55784113,0.0001844,2]
[347493708,1735875038578,-143.75688307,0.0001859,2]
[347493709,1735875038590,-32.48411693,0.0001859,2]
[347493710,1735875038599,-282.25588307,0.00019077,2]
[347493748,1735875040490,-567.648933,0.00018256,2]
[347493751,1735875040502,-141.45432824,0.00018256,2]
[347493753,1735875040511,-146.19202577,0.00019077,2]
[347493755,1735875040521,-161.21938014,0.00019176,2]
[347493757,1735875040531,-157.71323284,0.00019176,2]
[347493759,1735875040539,-500.0,0.00019176,2]
[347493761,1735875040548,-500.0,0.00019176,2]
[347493762,1735875040558,-97.3035357,0.00019176,2]
[347493802,1735875046843,-402.6964643,0.00019176,2]
[347493803,1735875046852,-440.44390602,0.00019176,2]
[347493804,1735875046863,-157.14639086,0.00019176,2]
[347493805,1735875046872,-5363.49061178,0.00019177,7]
[347493860,1735875941872,396.080845,0.00013973,2]
[347493905,1735876232906,-370.93538366,0.00015526,2]
[347493907,1735876232915,-370.93538366,0.00015683,2]
[347493909,1735876232925,-395.7391188,0.00016825,2]
[347493946,1735876238626,-396.313176,0.00016825,2]
[347493947,1735876238638,-350.5739058,0.00016825,2]
[347493948,1735876238652,-4390.2933716,0.00017004,2]
[347493949,1735876238661,-404.185188,0.00017168,2]
[347493950,1735876238670,-729.0913185,0.00017205,2]
[347493951,1735876238679,-225.29402047,0.00017715,2]
[347493952,1735876238688,-4562.5158753,0.0001816,2]
[347493953,1735876238697,-300.0,0.00018175,2]
[347493954,1735876238707,-762.47254836,0.00018176,2]
[347493955,1735876238715,-19800.36334326,0.00018176,2]
[347493956,1735876238727,-24900.0,0.00018177,2]
[347493957,1735876238737,-162.627,0.0001858,2]
[347493958,1735876238746,-9214.02492403,0.00018653,2]
[347493959,1735876238755,-1559.90668221,0.000189,2]
[347493960,1735876238765,-36370.801756,0.00019,3]
[347493961,1735876238774,-1559.90668204,0.00019038,2]
[347493962,1735876238783,-1559.90668204,0.00019176,2]
[347493963,1735876238792,-500.0,0.00019176,2]
[347493964,1735876238801,-500.0,0.00019176,5]
[347493965,1735876238810,-173963.05532913,0.00019177,7]
[347493966,1735876238822,-14457.36455187,0.00019177,7]
[347493967,1735876238833,-1426.95608211,0.00019177,7]
[347493968,1735876238844,-2910.24432196,0.00019177,7]
[347493969,1735876238855,-684.29268817,0.00019177,7]
[347493970,1735876238866,-12446.54000007,0.00019177,7]
[347493986,1735876240785,-1045.74271946,0.00019177,7]
[347493987,1735876241021,-597.95323649,0.00019177,7]
[347494261,1735876243988,-1433.507,0.00019177,7]
[347494549,1735876246956,-769.82739723,0.00018985,2]
[347494551,1735876246966,-15670.04810748,0.00019177,7]
[347494553,1735876246976,-182.0154114,0.00019177,2]
[347494555,1735876246986,-41.22594976,0.00019177,2]
[347496218,1735876516538,309.1,0.00025,120]
[347496220,1735876570675,3437.61571897,0.00014001,2]
[347496221,1735876570708,2510.99428103,0.00014001,2]
[347496232,1735876942108,396.276803,0.00013973,2]
[347496274,1735877432813,-202.092594,0.00017872,2]
[347496276,1735877432823,-202.092594,0.00018052,2]
[347496278,1735877432833,-13013.9975357,0.00018178,2]
[347496280,1735877432843,-302.84859387,0.00019,2]
[347496282,1735877432852,-9646.70142559,0.00019176,2]
[347496285,1735877432871,-154.48,0.00019177,2]
[347496288,1735877432883,-162.628,0.00019177,2]
[347496290,1735877432893,-500.0,0.00019177,2]
[347496292,1735877432903,-381.23627418,0.00019178,2]
[347496294,1735877432913,-9900.18167163,0.00019178,2]
[347496296,1735877432923,-4368.28,0.00019178,2]
[347496298,1735877432933,-500.0,0.00019178,2]
[347496300,1735877432943,-551.16,0.00019178,2]
[347496302,1735877432952,-501.89031327,0.00019178,2]
[347496305,1735877432961,-503.93215432,0.00019178,2]
[347496308,1735877432971,-338.63019869,0.00019178,2]
[347496311,1735877432982,-510.42483839,0.00019178,2]
[347496314,1735877432995,-502.41925417,0.00019178,2]
[347496317,1735877433005,-500.0,0.00019178,2]
[347496320,1735877433015,-503.63358157,0.00019178,2]
[347496323,1735877433024,-511.45695553,0.00019178,2]
[347496326,1735877433034,-500.0,0.00019178,2]
[347496329,1735877433044,-500.0,0.00019178,2]
[347496331,1735877433053,-505.99717863,0.00019178,2]
[347496332,1735877433063,-500.0,0.00019178,2]
[347496334,1735877433073,-500.0,0.00019178,2]
[347496336,1735877433083,-504.10163068,0.00019178,2]
[347496337,1735877433093,-500.74115931,0.00019178,2]
[347496338,1735877433103,-496.99085582,0.00019178,2]
[347496339,1735877433113,-503.65882418,0.00019178,2]
[347496340,1735877433123,-502.89078899,0.00019178,2]
[347496341,1735877433133,-158.92209578,0.00019178,2]
[347496342,1735877433143,-502.91982982,0.00019178,2]
[347496343,1735877433154,-500.0,0.00019178,2]
[347496344,1735877433165,-503.0147409,0.00019178,2]
[347496345,1735877433175,-502.60691912,0.00019178,2]
[347496346,1735877433185,-295.18966386,0.00019178,2]
[347496347,1735877433196,-215.62667444,0.00019178,2]
[347496348,1735877433206,-387.74710901,0.00019178,2]
[347496349,1735877433215,-501.91540858,0.00019178,2]
[347496350,1735877433225,-501.69114194,0.00019178,2]
[347496351,1735877433235,-500.0,0.00019178,2]
[347496352,1735877433244,-500.0,0.00019178,2]
[347496353,1735877433253,-502.16919607,0.00019178,2]
[347496354,1735877433262,-500.0,0.00019178,2]
[347496355,1735877433272,-502.68058412,0.00019178,2]
[347496356,1735877433282,-500.0,0.00019178,2]
[347496357,1735877433292,-500.0,0.00019178,2]
[347496358,1735877433301,-508.46107189,0.00019178,2]
[347496359,1735877433311,-501.73137775,0.00019178,2]
[347496360,1735877433320,-502.87475759,0.00019178,2]
[347496361,1735877433330,-502.67175818,0.00019178,2]
[347496363,1735877433340,-500.0,0.00019178,2]
[347496364,1735877433350,-500.0,0.00019178,2]
[347496365,1735877433360,-271.40593799,0.00019178,2]
[347496366,1735877433375,-230.19479451,0.00019178,2]
[347496367,1735877433385,-567.69210994,0.00019178,2]
[347496368,1735877433394,-502.62662753,0.00019178,2]
[347496369,1735877433404,-438.61404452,0.00019178,2]
[347496371,1735877433413,-500.0,0.00019178,2]
[347496373,1735877433423,-502.29659664,0.00019178,2]
[347496375,1735877433433,-507.15889519,0.00019178,2]
[347496377,1735877433443,-503.84114569,0.00019178,2]
[347496379,1735877433452,-504.20804695,0.00019178,2]
[347496380,1735877433462,-505.37704717,0.00019178,2]
[347496381,1735877433471,-500.0,0.00019178,2]
[347496383,1735877433482,-506.35970434,0.00019178,2]
[347496385,1735877433491,-501.69166607,0.00019178,2]
[347496387,1735877433505,-509.78890542,0.00019178,2]
[347496389,1735877433515,-510.05404849,0.00019178,2]
[347496391,1735877433524,-503.31255421,0.00019178,2]
[347496393,1735877433534,-500.0,0.00019178,2]
[347496395,1735877433544,-500.0,0.00019178,2]
[347496397,1735877433553,-500.0,0.00019178,2]
[347496399,1735877433563,-500.0,0.00019178,2]
[347496401,1735877433572,-527.46453529,0.00019178,2]
[347496403,1735877433582,-508.5547568,0.00019178,2]
[347496405,1735877433591,-501.90045919,0.00019178,2]
[347496408,1735877433600,-500.0,0.00019178,2]
[347496410,1735877433610,-515.9270095,0.00019178,2]
[347496412,1735877433619,-504.67787316,0.00019178,2]
[347496414,1735877433629,-505.14188302,0.00019178,2]
[347496416,1735877433640,-502.40669771,0.00019178,2]
[347496418,1735877433650,-538.13700102,0.00019178,2]
[347496420,1735877433660,-500.0,0.00019178,2]
[347496422,1735877433670,-504.53790854,0.00019178,2]
[347496424,1735877433680,-500.0,0.00019178,2]
[347496426,1735877433690,-501.98508583,0.00019178,2]
[347496428,1735877433700,-505.20601192,0.00019178,2]
[347496430,1735877433709,-500.0,0.00019178,2]
[347496432,1735877433718,-501.35604961,0.00019178,2]
[347496434,1735877433731,-501.4754371,0.00019178,2]
[347496436,1735877433743,-501.8490727,0.00019178,2]
[347496438,1735877433753,-504.92657537,0.00019178,2]
[347496440,1735877433763,-500.94945647,0.00019178,2]
[347496442,1735877433773,-501.11894409,0.00019178,2]
[347496444,1735877433782,-502.113459,0.00019178,2]
[347496446,1735877433791,-501.7219147,0.00019178,2]
[347496448,1735877433801,-504.7344467,0.00019178,2]
[347496450,1735877433810,-505.7115941,0.00019178,2]
[347496452,1735877433820,-506.04754915,0.00019178,2]
[347496454,1735877433829,-500.0,0.00019178,2]
[347496456,1735877433839,-500.00000001,0.00019178,2]
[347496458,1735877433849,-510.40417204,0.00019178,2]
[347496460,1735877433858,-500.0,0.00019178,2]
[347496462,1735877433867,-500.0,0.00019178,2]
[347496464,1735877433877,-503.95906196,0.00019178,2]
[347496466,1735877433886,-502.36506956,0.00019178,2]
[347496468,1735877433895,-501.10406545,0.00019178,2]
[347496470,1735877433904,-501.83948209,0.00019178,2]
[347496472,1735877433914,-510.86193785,0.00019178,2]
[347496474,1735877433923,-507.90142544,0.00019178,2]
[347496476,1735877433932,-524.67737665,0.00019178,2]
[347496478,1735877433942,-504.24173259,0.00019178,2]
[347496480,1735877433951,-505.07629677,0.00019178,2]
[347496482,1735877433961,-502.51968531,0.00019178,2]
[347496484,1735877433972,-503.68010815,0.00019178,2]
[347496486,1735877433983,-502.57039651,0.00019178,2]
[347496488,1735877433996,-550.29949847,0.00019178,2]
[347496490,1735877434005,-501.28276195,0.00019178,2]
[347496492,1735877434015,-501.40707695,0.00019178,2]
[347496494,1735877434025,-500.91313056,0.00019178,2]
[347496496,1735877434035,-502.17889679,0.00019178,2]
[347496498,1735877434046,-500.0,0.00019178,2]
[347496501,1735877434055,-500.0,0.00019178,2]
[347496503,1735877434067,-502.01207562,0.00019178,2]
[347496505,1735877434076,-503.1235338,0.00019178,2]
[347496507,1735877434087,-503.98216805,0.00019178,2]
[347496509,1735877434097,-503.67620017,0.00019178,2]
[347496511,1735877434106,-284.94620183,0.00019178,2]
[347496513,1735877434116,-500.0,0.00019178,2]
[347496515,1735877434126,-500.0,0.00019178,2]
[347496517,1735877434135,-500.0,0.00019178,2]
[347496519,1735877434145,-500.0,0.00019178,2]
[347496521,1735877434155,-503.83029318,0.00019178,2]
[347496523,1735877434164,-500.0,0.00019178,2]
[347496525,1735877434173,-500.0,0.00019178,2]
[347496527,1735877434183,-500.0,0.00019178,2]
[347496529,1735877434193,-500.0,0.00019178,2]
[347496531,1735877434202,-586.93957439,0.00019178,2]
[347496533,1735877434212,-500.61280448,0.00019178,2]
[347496535,1735877434221,-503.89914711,0.00019178,2]
[347496536,1735877434235,-151.0,0.00019178,2]
[347496538,1735877434244,-501.41529525,0.00019178,2]
[347496541,1735877434255,-502.49849655,0.00019178,2]
[347496543,1735877434265,-502.47932697,0.00019178,2]
[347496545,1735877434274,-509.35631764,0.00019178,2]
[347496547,1735877434284,-501.72900518,0.00019178,2]
[347496549,1735877434294,-489.53725837,0.00019178,2]
[347496550,1735877434303,-501.06726951,0.00019178,2]
[347496553,1735877434313,-504.00614542,0.00019178,2]
[347496555,1735877434323,-531.73601849,0.00019178,2]
[347496557,1735877434333,-500.8336926,0.00019178,2]
[347496558,1735877434342,-501.60617898,0.00019178,2]
[347496560,1735877434353,-500.0,0.00019178,2]
[347496563,1735877434364,-500.0,0.00019178,2]
[347496565,1735877434374,-510.75370713,0.00019178,2]
[347496567,1735877434384,-506.17798173,0.00019178,2]
[347496569,1735877434393,-517.71,0.00019178,2]
[347496571,1735877434403,-503.77030349,0.00019178,2]
[347496573,1735877434413,-505.08252791,0.00019178,2]
[347496575,1735877434423,-502.46246154,0.00019178,2]
[347496577,1735877434433,-502.10528461,0.00019178,2]